bitfinex-derivatives/quotes_BNBF0:USTF0_20250220
["timestamp","ask_amount","ask_price","bid_price","bid_amount"]
[1740091577229,2.92930818,656.92,656.35,0.29348769]
[1740091577430,2.92930818,656.91,656.35,0.29348769]
[1740091577630,2.14929121,656.95,656.35,0.29348769]
[1740091577928,5.07866943,656.94,656.35,0.29348769]
[1740091578131,2.92937822,656.93,656.35,0.29348769]
[1740091578333,2.14929121,656.94,656.35,0.29348769]
[1740091578532,2.9295947,656.93,656.35,0.29348769]
[1740091578729,2.9295947,656.92,656.35,0.29348769]
[1740091578930,2.9295947,656.91,656.35,0.29348769]
[1740091579131,2.9295947,656.9,656.35,0.29348769]
[1740091579335,2.9295947,656.89,656.35,0.29348769]
[1740091579537,5.07888591,656.88,656.35,0.29348769]
[1740091579738,2.9295947,656.87,656.35,0.29348769]
[1740091579937,2.9295947,656.86,656.35,0.29348769]
[1740091580238,2.93017345,656.85,656.35,0.29348769]
[1740091580439,2.93017345,656.84,656.35,0.29348769]
[1740091580639,2.93017345,656.83,656.35,0.29348769]
[1740091580839,2.93017345,656.82,656.35,0.29348769]
[1740091581040,2.93017345,656.81,656.35,0.29348769]
[1740091581240,2.93017345,656.8,656.35,0.29348769]
[1740091581436,2.93017345,656.79,656.35,0.29348769]
[1740091581633,2.93017345,656.78,656.35,0.29348769]
[1740091581835,2.93017345,656.77,656.35,0.29348769]
[1740091582042,2.93017345,656.76,656.35,0.29348769]
[1740091582238,2.93017345,656.75,656.35,0.29348769]
[1740091582435,2.93017345,656.74,656.35,0.29348769]
[1740091582635,2.93017345,656.73,656.35,0.29348769]
[1740091582941,2.93017345,656.72,656.35,0.29348769]
[1740091583141,2.93017345,656.71,656.35,0.29348769]
[1740091583337,2.93017345,656.7,656.35,0.29348769]
[1740091583544,2.14929121,656.75,656.35,0.29348769]
[1740091583545,2.92765359,656.69,656.35,0.29348769]
[1740091583742,2.14929121,656.75,656.35,0.29348769]
[1740091583938,5.07690571,656.74,656.35,0.29348769]
[1740091584137,2.9276145,656.73,656.35,0.29348769]
[1740091584340,2.9276145,656.72,656.35,0.29348769]
[1740091584542,2.9276145,656.71,656.35,0.29348769]
[1740091584743,2.9276145,656.7,656.35,0.29348769]
[1740091584943,2.9276145,656.69,656.35,0.29348769]
[1740091585145,2.92714264,656.68,656.35,0.29348769]
[1740091585447,2.92712944,656.67,656.35,0.29348769]
[1740091585642,2.92712944,656.66,656.35,0.29348769]
[1740091585843,2.92712944,656.65,656.35,0.29348769]
[1740091586041,2.92712944,656.64,656.35,0.29348769]
[1740091586246,2.92712944,656.63,656.35,0.29348769]
[1740091586549,2.92712944,656.62,656.35,0.29348769]
[1740091586843,2.92712944,656.61,656.35,0.29348769]
[1740091587044,2.92712944,656.6,656.35,0.29348769]
[1740091587241,2.92712944,656.59,656.35,0.29348769]
[1740091587441,2.92712944,656.58,656.35,0.29348769]
[1740091587649,2.92712944,656.57,656.35,0.29348769]
[1740091587846,2.92712944,656.56,656.35,0.29348769]
[1740091588045,2.92582304,656.55,656.35,0.29348769]
[1740091588243,2.92582304,656.54,656.22,1.58908947]
[1740091588544,2.14929121,656.58,656.22,1.58908947]
[1740091588949,2.14929121,656.57,656.22,1.58908947]
[1740091590650,2.14929121,656.56,656.22,1.58908947]
[1740091591650,2.14929121,656.55,656.22,1.58908947]
[1740091592946,2.14929121,656.54,656.22,1.58908947]
[1740091594546,2.14929121,656.53,656.22,1.58908947]
[1740091595151,1.502,656.89,656.22,1.58908947]
[1740091595548,2.14417083,656.88,656.22,1.58908947]
[1740091597753,2.14417083,656.87,656.22,1.58908947]
[1740091597954,2.90894256,656.86,656.22,1.58908947]
[1740091598253,2.90894256,656.85,656.22,1.58908947]
[1740091598454,2.90894256,656.84,656.22,1.58908947]
[1740091598654,2.90894256,656.83,656.22,1.58908947]
[1740091598856,2.90894256,656.82,656.22,1.58908947]
[1740091599055,2.90894256,656.81,656.22,1.58908947]
[1740091599258,5.05311339,656.8,656.22,1.58908947]
[1740091599459,2.90894256,656.79,656.22,1.58908947]
[1740091599659,2.90894256,656.78,656.22,1.58908947]
[1740091599859,2.90894256,656.77,656.22,1.58908947]
[1740091600056,2.90894256,656.76,656.22,1.58908947]
[1740091600252,2.90894256,656.75,656.22,1.58908947]
[1740091600455,2.90894256,656.74,656.22,1.58908947]
[1740091600658,2.90894256,656.73,656.22,1.58908947]
[1740091600858,2.90894256,656.72,656.22,1.58908947]
[1740091601057,2.90894256,656.71,656.22,1.58908947]
[1740091601258,2.90894256,656.7,656.22,1.58908947]
[1740091601453,2.90894256,656.69,656.22,1.58908947]
[1740091601658,2.90894256,656.68,656.22,1.58908947]
[1740091601860,2.90894256,656.67,656.22,1.58908947]
[1740091602057,2.90894256,656.66,656.22,1.58908947]
[1740091602359,2.90894256,656.65,656.22,1.58908947]
[1740091602659,2.90894256,656.64,656.22,1.58908947]
[1740091602959,2.90894256,656.63,656.22,1.58908947]
[1740091603261,2.90894256,656.62,656.22,1.8938653]
[1740091603559,2.90894256,656.61,656.22,1.8938653]
[1740091603754,2.90894256,656.6,656.22,1.8938653]
[1740091603955,2.90894256,656.59,656.22,1.8938653]
[1740091604156,5.05311339,656.58,656.22,1.8938653]
[1740091604358,2.90894256,656.57,656.22,1.8938653]
[1740091604558,2.90894256,656.56,656.22,1.8938653]
[1740091604756,2.14417083,656.58,656.22,1.8938653]
[1740091604962,2.91087904,656.57,656.23,0.30477119]
[1740091605159,2.91087904,656.56,656.23,0.30477119]
[1740091605360,2.14417083,656.58,656.23,0.30477119]
[1740091605560,2.9111617,656.57,656.23,0.30477119]
[1740091605860,2.91115529,656.56,656.23,0.30477119]
[1740091606055,2.14417083,656.57,656.23,0.30477119]
[1740091606458,5.545,656.89,656.23,0.30477119]
[1740091606664,2.91113175,656.88,656.23,0.30477119]
[1740091606860,2.91113175,656.87,656.23,0.30477119]
[1740091607156,2.91113175,656.86,656.23,0.30477119]
[1740091607362,2.91113175,656.85,656.23,0.30477119]
[1740091607555,2.91113175,656.84,656.23,0.30477119]
[1740091607759,2.91113175,656.83,656.23,0.30477119]
[1740091607959,2.91113175,656.82,656.23,0.30477119]
[1740091608157,5.05683845,656.81,656.23,0.30477119]
[1740091608361,2.91113175,656.8,656.23,0.30477119]
[1740091608563,2.91113175,656.79,656.23,0.30477119]
[1740091608763,2.91113175,656.78,656.23,0.30477119]
[1740091608963,2.91113175,656.77,656.23,0.30477119]
[1740091609163,2.1457067,656.81,656.23,0.30477119]
[1740091609363,2.91210631,656.8,656.23,0.30477119]
[1740091609565,2.91210631,656.79,656.23,0.30477119]
[1740091609760,2.91210631,656.78,656.23,0.30477119]
[1740091610065,5.545,656.89,656.23,0.30477119]
[1740091610066,5.0592886,656.77,656.23,0.30477119]
[1740091610367,2.91210631,656.76,656.23,0.30477119]
[1740091610567,2.91210631,656.75,656.23,0.30477119]
[1740091610766,2.91210631,656.74,656.23,0.30477119]
[1740091611065,2.91210631,656.73,656.23,0.30477119]
[1740091611261,2.91210631,656.72,656.23,0.30477119]
[1740091611465,2.91210631,656.71,656.23,0.30477119]
[1740091611766,4.043,656.89,656.23,0.30477119]
[1740091611767,2.91210631,656.7,656.23,0.30477119]
[1740091611960,2.91210631,656.69,656.23,0.30477119]
[1740091612165,2.91210631,656.68,656.23,0.30477119]
[1740091612466,2.14718229,656.72,656.23,0.30477119]
[1740091612467,2.91210631,656.67,656.23,0.30477119]
[1740091612667,2.14718229,656.72,656.23,0.30477119]
[1740091612668,2.91210631,656.66,656.23,0.30477119]
[1740091612867,2.91210631,656.65,655.48,1.12221098]
[1740091613067,2.91210631,656.64,656.09,1.589283]
[1740091613370,2.91210631,656.63,655.48,1.12221098]
[1740091613666,2.91210631,656.62,656.09,1.58935558]
[1740091613864,2.91210631,656.61,655.48,1.12221098]
[1740091614061,2.91210631,656.6,655.5,0.3051106]
[1740091614266,2.91210631,656.59,655.5,0.3051106]
[1740091614467,2.91210631,656.58,655.5,0.3051106]
[1740091614667,2.91210631,656.57,655.5,0.3051106]
[1740091614967,2.91210631,656.56,655.5,0.3051106]
[1740091615166,2.91210631,656.55,655.5,0.3051106]
[1740091615367,2.14718229,656.58,655.5,0.3051106]
[1740091615368,2.91210631,656.54,655.5,0.3051106]
[1740091615669,2.91210631,656.53,655.54,1.12221098]
[1740091615864,2.91210631,656.52,655.56,0.30508267]
[1740091616068,2.91210631,656.51,655.56,0.30508267]
[1740091616269,5.0592886,656.5,655.56,0.30508267]
[1740091616567,2.91210631,656.49,655.56,0.30508267]
[1740091616761,2.14718229,656.5,655.56,0.30508267]
[1740091616762,2.91210631,656.48,655.56,0.30508267]
[1740091616962,2.91210631,656.47,655.56,0.30508267]
[1740091617162,2.91210631,656.46,655.56,0.30508267]
[1740091617368,2.91210631,656.45,655.56,0.30508267]
[1740091617566,2.91210631,656.44,655.56,0.30508267]
[1740091617764,5.0592886,656.43,655.56,0.30508267]
[1740091617967,2.91210631,656.42,655.56,0.30508267]
[1740091618168,2.91210631,656.41,655.56,0.30508267]
[1740091618371,2.91210631,656.4,655.56,0.30508267]
[1740091618670,2.91210631,656.39,655.56,0.30508267]
[1740091618869,2.91210631,656.38,655.56,0.30508267]
[1740091619068,2.91210631,656.37,655.56,0.30508267]
[1740091619271,2.91210631,656.36,655.56,0.30508267]
[1740091619470,2.91210631,656.35,655.56,0.30508267]
[1740091619670,2.91210631,656.34,655.56,0.30508267]
[1740091619870,2.91210631,656.33,655.56,0.30508267]
[1740091620070,2.91210631,656.32,655.56,0.30508267]
[1740091620271,5.0592886,656.31,655.56,0.30508267]
[1740091620468,2.91210631,656.3,655.56,0.30508267]
[1740091620771,2.91210631,656.29,655.56,0.30508267]
[1740091620973,2.14718229,656.31,655.56,0.30508267]
[1740091621172,2.9081455,656.3,655.56,0.30508267]
[1740091621366,2.14718229,656.31,655.56,0.30508267]
[1740091621569,2.90786061,656.3,655.56,0.30508267]
[1740091621774,2.90786061,656.29,655.56,0.30508267]
[1740091621974,2.14718229,656.31,655.56,0.30508267]
[1740091622173,2.14718229,656.29,655.56,0.30508267]
[1740091623277,2.90734097,656.28,655.56,0.30508267]
[1740091623478,2.90734097,656.27,655.56,0.30508267]
[1740091623679,2.90734097,656.26,655.56,0.30508267]
[1740091623875,2.90734097,656.25,655.56,0.30508267]
[1740091624076,2.90734097,656.24,655.56,0.30508267]
[1740091624272,2.90734097,656.23,655.56,0.30508267]
[1740091624479,2.90734097,656.22,655.56,0.30508267]
[1740091624777,2.90734097,656.21,655.56,0.30508267]
[1740091624977,2.90734097,656.2,655.56,0.30508267]
[1740091625176,2.90734097,656.19,655.56,0.30508267]
[1740091625471,2.90734097,656.18,655.56,0.30508267]
[1740091625672,2.90734097,656.17,655.56,0.30508267]
[1740091625871,2.90734097,656.16,655.56,0.30508267]
[1740091626071,2.90734097,656.15,655.56,0.30508267]
[1740091626274,2.90734097,656.14,655.56,0.30508267]
[1740091626471,2.90734097,656.13,655.56,0.30508267]
[1740091626671,2.90734097,656.12,655.56,0.30508267]
[1740091626877,2.90734097,656.11,655.56,0.30508267]
[1740091627075,2.90734097,656.1,655.56,0.30508267]
[1740091627377,2.14718229,656.14,655.56,0.30508267]
[1740091627677,2.90426679,656.13,655.56,0.30508267]
[1740091627877,5.05144908,656.12,655.56,0.30508267]
[1740091628074,2.90426679,656.11,655.56,0.30508267]
[1740091628271,2.14718229,656.12,655.56,0.30508267]
[1740091628474,2.90395156,656.11,655.56,0.30508267]
[1740091628674,2.14718229,656.12,655.56,0.30508267]
[1740091628977,2.90395419,656.11,655.56,0.30508267]
[1740091629180,2.14718229,656.12,655.56,0.30508267]
[1740091629374,2.90370683,656.11,655.56,0.30508267]
[1740091629580,2.90370683,656.1,655.56,0.30508267]
[1740091629875,2.90370683,656.09,655.56,0.30508267]
[1740091630079,2.90370683,656.08,655.56,0.30508267]
[1740091630281,2.90370683,656.07,655.56,0.30508267]
[1740091630482,2.14718229,656.1,655.56,0.30508267]
[1740091630674,2.90362883,656.09,655.56,0.30508267]
[1740091630879,2.90362883,656.08,655.56,0.30508267]
[1740091631074,2.90362883,656.07,655.56,0.30508267]
[1740091631281,2.14718229,656.07,655.56,0.30508267]
[1740091632879,5.516,656.35,655.56,0.30508267]
[1740091633077,2.90353955,656.34,655.56,0.30508267]
[1740091633278,2.90353955,656.33,655.56,0.30508267]
[1740091633483,2.90353955,656.32,655.56,0.30508267]
[1740091633678,2.90353955,656.31,655.56,0.30508267]
[1740091633881,2.90353955,656.3,655.56,0.30508267]
[1740091634183,2.90353955,656.29,655.56,0.30508267]
[1740091634484,2.90353955,656.28,655.56,0.30508267]
[1740091634677,2.90353955,656.27,655.56,0.30508267]
[1740091634877,2.90353955,656.26,655.56,0.30508267]
[1740091635083,5.04400912,656.25,655.56,0.30508267]
[1740091635284,2.90353955,656.24,655.56,0.30508267]
[1740091635484,2.90353955,656.23,655.56,0.30508267]
[1740091635685,2.90353955,656.22,655.56,0.30508267]
[1740091635886,2.90353955,656.21,655.56,0.30508267]
[1740091636186,2.90353955,656.2,655.56,0.30508267]
[1740091636386,2.90353955,656.19,655.56,0.30508267]
[1740091636586,2.90353955,656.18,655.56,0.30508267]
[1740091636785,2.90353955,656.17,655.56,0.30508267]
[1740091636980,2.90353955,656.16,655.56,0.30508267]
[1740091637188,2.90353955,656.15,655.56,0.30508267]
[1740091637386,2.90353955,656.14,655.56,0.30508267]
[1740091637581,2.90353955,656.13,655.56,0.30508267]
[1740091637779,2.14046957,656.18,655.56,0.30508267]
[1740091637984,2.90404958,656.17,655.56,0.30508267]
[1740091638185,2.90404958,656.16,655.56,0.30508267]
[1740091638385,2.90404958,656.15,655.56,0.30508267]
[1740091638588,2.90404958,656.14,655.56,0.30508267]
[1740091638885,2.90404958,656.13,655.56,0.30508267]
[1740091639086,2.90404958,656.12,655.56,0.30508267]
[1740091639283,2.14046957,656.17,655.56,0.30508267]
[1740091639481,2.90385277,656.16,655.56,0.30508267]
[1740091639680,2.90385277,656.15,655.56,0.30508267]
[1740091639886,2.90385277,656.14,655.56,0.30508267]
[1740091640187,2.90385277,656.13,655.56,0.30508267]
[1740091640482,2.90385277,656.12,655.56,0.30508267]
[1740091640687,2.14046957,656.16,655.56,0.30508267]
[1740091640887,2.9038683,656.15,655.56,0.30508267]
[1740091641188,2.9038683,656.14,655.56,0.30508267]
[1740091641386,2.9038683,656.13,655.56,0.30508267]
[1740091641588,2.14046957,656.14,655.56,0.30508267]
[1740091641786,2.9034181,656.13,655.56,0.30508267]
[1740091641982,2.14046957,656.14,655.56,0.30508267]
[1740091642282,2.90342592,656.13,655.56,0.30508267]
[1740091642481,2.14046957,656.14,655.56,0.30508267]
[1740091642987,2.14046957,656.13,655.56,0.30508267]
[1740091643385,2.90264493,656.12,655.56,0.30508267]
[1740091643582,2.90264493,656.11,655.56,0.30508267]
[1740091643788,2.90264493,656.1,655.56,0.30508267]
[1740091643986,2.90264493,656.09,655.56,0.30508267]
[1740091644190,2.90264493,656.08,655.56,0.30508267]
[1740091644388,2.90264493,656.07,655.56,0.30508267]
[1740091644687,2.90264493,656.06,655.56,0.30508267]
[1740091644888,2.90264493,656.05,655.56,0.30508267]
[1740091645091,2.90264493,656.04,655.56,0.30508267]
[1740091645389,2.90264493,656.03,655.56,0.30508267]
[1740091645588,2.90264493,656.02,655.56,0.30508267]
[1740091645786,2.90264493,656.01,655.56,0.30508267]
[1740091645988,2.90264493,656.0,655.56,0.30508267]
[1740091646188,2.90264493,655.99,655.56,0.30508267]
[1740091646388,2.90264493,655.98,655.56,0.30508267]
[1740091646690,2.90264493,655.97,655.56,0.30508267]
[1740091646887,2.14046957,656.02,655.56,0.30508267]
[1740091647087,2.90191393,656.01,655.56,0.30508267]
[1740091647281,1.425,656.27,655.56,0.30508267]
[1740091647282,2.90191393,656.0,655.56,0.30508267]
[1740091647486,2.90191393,655.99,655.56,0.30508267]
[1740091647686,2.90191393,655.98,655.56,0.30508267]
[1740091647884,2.90191393,655.97,655.56,0.30508267]
[1740091648087,2.90172721,655.96,655.56,0.30508267]
[1740091648285,2.13955791,655.99,655.56,0.30508267]
[1740091649090,2.13955791,655.98,655.56,0.30508267]
[1740091652794,2.13955791,655.96,655.56,0.30508267]
[1740091653990,2.89783273,655.95,655.56,0.30508267]
[1740091654289,5.03739064,655.94,655.56,0.30508267]
[1740091654492,2.89783273,655.93,655.56,0.30508267]
[1740091654791,2.13955791,655.94,655.56,0.30508267]
[1740091654993,2.89695795,655.93,655.56,0.30508267]
[1740091655293,2.13955791,655.94,655.56,0.30508267]
[1740091655887,2.13955791,655.93,655.56,0.30508267]
[1740091657287,2.13955791,655.92,655.56,0.30508267]
[1740091658790,2.13955791,655.91,655.56,0.30508267]
[1740091660896,2.13955791,655.9,655.56,0.30508267]
[1740091662596,2.13955791,655.89,655.56,0.30508267]
[1740091663998,4.905,656.23,655.56,0.30508267]
[1740091663999,2.13955791,655.88,655.56,0.30508267]
[1740091665501,2.13955791,655.87,655.56,0.30508267]
[1740091667203,2.13955791,655.86,655.56,0.30508267]
[1740091668705,5.04183555,655.85,655.56,0.30508267]
[1740091668907,2.90227764,655.84,655.56,0.30508267]
[1740091669102,2.13955791,655.85,655.56,0.30508267]
[1740091669902,2.13955791,655.84,655.56,0.30508267]
[1740091671203,4.905,656.23,655.56,0.30508267]
[1740091671407,2.90386242,656.22,655.56,0.30508267]
[1740091671702,2.90386242,656.21,655.56,0.30508267]
[1740091671902,2.90386242,656.2,655.56,0.30508267]
[1740091672207,2.90386242,656.19,655.56,0.30508267]
[1740091672408,2.90386242,656.18,655.56,0.30508267]
[1740091672709,2.90386242,656.17,655.56,0.30508267]
[1740091672908,2.90386242,656.16,655.56,0.30508267]
[1740091673208,5.04564356,656.15,655.56,0.30508267]
[1740091673408,2.90386242,656.14,655.56,0.30508267]
[1740091673608,2.90386242,656.13,655.56,0.30508267]
[1740091673811,2.90386242,656.12,655.56,0.30508267]
[1740091674006,2.90386242,656.11,655.56,0.30508267]
[1740091674207,2.90386242,656.1,655.56,0.30508267]
[1740091674409,2.90386242,656.09,655.56,0.30508267]
[1740091674605,2.90386242,656.08,655.56,0.30508267]
[1740091674810,2.90386242,656.07,655.56,0.30508267]
[1740091675005,2.14178114,656.08,655.56,0.30508267]
[1740091675408,2.90674069,656.07,655.56,0.30508267]
[1740091675607,2.14178114,656.08,655.56,0.30508267]
[1740091675805,2.90727632,656.07,655.56,0.30508267]
[1740091676008,2.14178114,656.08,655.56,0.30508267]
[1740091676603,2.14178114,656.07,655.56,0.30508267]
[1740091678109,2.14178114,656.06,655.56,0.30508267]
[1740091679212,2.90969207,656.05,655.56,0.30508267]
[1740091679412,2.90969207,656.04,655.56,0.30508267]
[1740091679614,2.90969207,656.03,655.56,0.30508267]
[1740091679812,2.90969207,656.02,655.56,0.30508267]
[1740091680014,2.90969207,656.01,655.56,0.30508267]
[1740091680206,2.90969207,656.0,655.56,0.30508267]
[1740091680406,2.90969207,655.99,655.56,0.30508267]
[1740091680608,2.90969207,655.98,655.56,0.30508267]
[1740091680916,2.90969207,655.97,655.56,0.30508267]
[1740091681108,2.90969207,655.96,655.56,0.30508267]
[1740091681312,2.90969207,655.95,655.56,0.30508267]
[1740091681512,2.90969207,655.94,655.56,0.30508267]
[1740091681707,2.90969207,655.93,655.56,0.30508267]
[1740091681914,2.90969207,655.92,655.56,0.30508267]
[1740091682114,2.90969207,655.91,655.56,0.30508267]
[1740091682313,2.90969207,655.9,655.56,0.30508267]
[1740091682515,2.90969207,655.89,655.56,0.30508267]
[1740091682715,2.14178114,655.89,655.56,0.30508267]
[1740091683514,2.91371902,655.88,655.56,0.30508267]
[1740091683715,2.14178114,655.89,655.56,0.30508267]
[1740091683917,2.91371679,655.88,655.56,0.30508267]
[1740091684119,2.14178114,655.89,655.56,0.30508267]
[1740091684720,2.14178114,655.88,655.56,0.30508267]
[1740091686420,6.393,656.23,655.56,0.30508267]
[1740091686616,2.91456518,656.22,655.56,0.30508267]
[1740091686820,2.91456518,656.21,655.56,0.30508267]
[1740091687015,2.91456518,656.2,655.56,0.30508267]
[1740091687219,2.91456518,656.19,655.56,0.30508267]
[1740091687421,2.91456518,656.18,655.56,0.30508267]
[1740091687621,2.91456518,656.17,655.56,0.30508267]
[1740091687923,2.91456518,656.16,655.56,0.30508267]
[1740091688222,2.91456518,656.15,655.56,0.30508267]
[1740091688422,2.91456518,656.14,655.56,0.30508267]
[1740091688618,2.91456518,656.13,655.56,0.30508267]
[1740091688922,2.91456518,656.12,655.56,0.30508267]
[1740091689123,2.91456518,656.11,655.56,0.30508267]
[1740091689422,2.91456518,656.1,655.56,0.30508267]
[1740091689622,2.91456518,656.09,655.56,0.30508267]
[1740091689814,2.91456518,656.08,655.56,0.30508267]
[1740091690019,2.91456518,656.07,655.56,0.30508267]
[1740091690324,2.91456518,656.06,655.56,0.30508267]
[1740091690523,2.91456518,656.05,655.56,0.30508267]
[1740091690723,2.91456518,656.04,655.56,0.30508267]
[1740091690923,2.91456518,656.03,655.56,0.30508267]
[1740091691126,2.91456518,656.02,655.56,0.30508267]
[1740091691319,2.91456518,656.01,655.56,0.30508267]
[1740091691519,2.91456518,656.0,655.56,0.30508267]
[1740091691722,2.91456518,655.99,655.56,0.30508267]
[1740091692017,2.14906233,656.05,655.56,0.30508267]
[1740091692018,2.91456518,655.98,655.56,0.30508267]
[1740091692217,2.91456518,655.97,655.56,0.30508267]
[1740091692522,2.91456518,655.96,655.56,0.30508267]
[1740091692723,2.14906233,655.96,655.56,0.30508267]
[1740091694217,2.14906233,655.95,655.56,0.30508267]
[1740091695726,5.06725261,655.94,655.56,0.30508267]
[1740091695927,2.91819028,655.93,655.56,0.30508267]
[1740091696221,2.14906233,655.94,655.56,0.30508267]
[1740091696222,2.91835934,655.92,655.56,0.30508267]
[1740091696421,2.14906233,655.94,655.56,0.30508267]
[1740091696726,2.91833038,655.93,655.56,0.30508267]
[1740091696927,2.14906233,655.94,655.56,0.30508267]
[1740091697327,2.14906233,655.92,655.56,0.30508267]
[1740091697522,2.91845535,655.91,655.56,0.30508267]
[1740091697723,2.91844514,655.9,655.56,0.30508267]
[1740091697923,2.14906233,655.92,655.56,0.30508267]
[1740091698122,2.91843434,655.91,655.56,0.30508267]
[1740091698324,2.91843434,655.9,655.56,0.30508267]
[1740091698629,5.083,656.23,655.56,0.30508267]
[1740091698828,2.91857,656.22,655.56,0.30508267]
[1740091699129,2.91857,656.21,655.56,0.30508267]
[1740091699328,2.91857,656.2,655.56,0.30508267]
[1740091699530,2.91857,656.19,655.56,0.30508267]
[1740091699726,2.91857,656.18,655.56,0.30508267]
[1740091699929,2.15200944,656.22,655.56,0.30508267]
[1740091699930,2.91857,656.17,655.56,0.30508267]
[1740091700130,2.91857,656.16,655.56,0.30508267]
[1740091700331,2.91857,656.15,655.56,0.30508267]
[1740091700526,2.91857,656.14,655.56,0.30508267]
[1740091700727,2.91857,656.13,655.56,0.30508267]
[1740091700925,2.91857,656.12,655.56,0.30508267]
[1740091701127,2.91857,656.11,655.56,0.30508267]
[1740091701326,2.91857,656.1,655.56,0.30508267]
[1740091701530,2.15200944,656.14,655.56,0.30508267]
[1740091701531,2.91857,656.09,655.56,0.30508267]
[1740091701731,2.91857,656.08,655.56,0.30508267]
[1740091701923,2.15200944,656.14,655.56,0.30508267]
[1740091701924,2.91857,656.07,655.56,0.30508267]
[1740091702129,2.91857,656.06,655.56,0.30508267]
[1740091702431,5.07145684,656.05,655.56,0.30508267]
[1740091702627,2.15200944,656.05,655.56,0.30508267]
[1740091702826,2.91949201,656.04,655.56,0.30508267]
[1740091703025,2.15200944,656.05,655.56,0.30508267]
[1740091703223,2.91951283,656.04,655.56,0.30508267]
[1740091703424,2.15200944,656.05,655.56,0.30508267]
[1740091703627,2.9198024,656.04,655.56,0.30508267]
[1740091703829,2.15200944,656.05,655.56,0.30508267]
[1740091704030,2.91982116,656.04,655.56,0.30508267]
[1740091704226,2.92018508,656.03,655.56,0.30508267]
[1740091704531,2.15200944,656.02,655.56,0.30508267]
[1740091705331,2.92051575,656.01,655.56,0.30508267]
[1740091705531,2.92051575,656.0,655.56,0.30508267]
[1740091705834,2.15200944,656.02,655.56,0.30508267]
[1740091706034,2.9206165,656.01,655.56,0.30508267]
[1740091706227,2.9206165,656.0,655.56,0.30508267]
[1740091706432,2.15200944,656.02,655.56,0.30508267]
[1740091706629,2.15200944,656.0,655.56,0.30508267]
[1740091707433,2.92118793,655.99,655.56,0.30508267]
[1740091707633,2.92118793,655.98,655.56,0.30508267]
[1740091707833,2.15200944,656.0,655.56,0.30508267]
[1740091708035,5.07322177,655.99,655.56,0.30508267]
[1740091708333,2.92121233,655.98,655.56,0.30508267]
[1740091708534,2.15200944,655.99,655.56,0.30508267]
[1740091708728,2.92148646,655.98,655.56,0.30508267]
[1740091708930,2.15200944,655.99,655.56,0.30508267]
[1740091709130,2.92151163,655.98,655.56,0.30508267]
[1740091709329,2.92178773,655.97,655.56,0.30508267]
[1740091709529,2.92178773,655.96,655.56,0.30508267]
[1740091709733,2.92178773,655.95,655.56,0.30508267]
[1740091709931,2.92178773,655.94,655.56,0.30508267]
[1740091710129,2.92178773,655.93,655.56,0.30508267]
[1740091710329,2.92178773,655.92,655.56,0.30508267]
[1740091710533,2.92181122,655.91,655.56,0.30508267]
[1740091710732,2.92181122,655.9,655.56,0.30508267]
[1740091710928,2.92181122,655.89,655.56,0.30508267]
[1740091711135,2.92181122,655.88,655.56,0.30508267]
[1740091711428,2.92181122,655.87,655.56,0.30508267]
[1740091711632,2.92181122,655.86,655.56,0.30508267]
[1740091711830,2.92181122,655.85,655.56,0.30508267]
[1740091712031,2.92181122,655.84,655.56,0.30508267]
[1740091712236,2.92181122,655.83,655.56,0.30508267]
[1740091712434,2.92181122,655.82,655.56,0.30508267]
[1740091712634,2.92181122,655.81,655.56,0.30508267]
[1740091712836,2.15200944,655.89,655.56,0.30508267]
[1740091712837,2.92181122,655.8,655.56,0.30508267]
[1740091713036,2.15200944,655.89,655.56,0.30508267]
[1740091713237,2.92244568,655.88,655.56,0.30508267]
[1740091713433,2.92244568,655.87,655.56,0.30508267]
[1740091713637,2.92244568,655.86,655.56,0.30508267]
[1740091713837,2.92244568,655.85,655.56,0.30508267]
[1740091714036,2.92244568,655.84,655.56,0.30508267]
[1740091714231,2.92244568,655.83,655.56,0.30508267]
[1740091714437,2.92244568,655.82,655.56,0.30508267]
[1740091714634,2.92244568,655.81,655.56,0.30508267]
[1740091714836,2.92244568,655.8,655.56,0.30508267]
[1740091715038,2.15200944,655.88,655.56,0.30508267]
[1740091715239,2.92284618,655.87,655.56,0.30508267]
[1740091715439,2.92284618,655.86,655.56,0.30508267]
[1740091715641,2.92284618,655.85,655.56,0.30508267]
[1740091715938,2.92284618,655.84,655.56,0.30508267]
[1740091716139,2.92284618,655.83,655.56,0.30508267]
[1740091716339,2.92284618,655.82,655.56,0.30508267]
[1740091716539,2.92284618,655.81,655.56,0.30508267]
[1740091716839,2.15200944,655.81,655.56,0.30508267]
[1740091718141,9.548,656.23,655.56,0.30508267]
[1740091718342,2.92457297,656.22,655.56,0.30508267]
[1740091718540,2.92457297,656.21,655.56,0.30508267]
[1740091718741,2.92457297,656.2,655.56,0.30508267]
[1740091718936,2.92457297,656.19,655.56,0.30508267]
[1740091719141,2.92457297,656.18,655.56,0.30508267]
[1740091719440,2.92457297,656.17,655.56,0.30508267]
[1740091719641,2.92457297,656.16,655.56,0.30508267]
[1740091719839,2.92457297,656.15,655.56,0.30508267]
[1740091720042,2.92457297,656.14,655.56,0.30508267]
[1740091720238,2.92457297,656.13,655.56,0.30508267]
[1740091720438,2.92457297,656.12,655.56,0.30508267]
[1740091720636,2.92457297,656.11,655.56,0.30508267]